bitfinex/quotes_SOLUSD_20220103
["timestamp","ask_amount","ask_price","bid_price","bid_amount"]
[1641198841215,9.1722,173.03,172.94,10.2884]
[1641198843719,9.1722,173.03,172.94,10.0284]
[1641198843919,9.4322,173.03,172.94,10.0284]
[1641198844122,9.4322,173.03,172.94,1.3554]
[1641198844821,8.6741,172.99,172.94,1.3554]
[1641198845524,8.6741,172.99,172.94,1.6154]
[1641198846123,8.6741,172.99,172.94,1.3554]
[1641198847443,8.6741,172.99,172.94,1.6154]
[1641198847945,26.87157264,172.98,172.94,0.26]
[1641198848342,26.87157264,172.98,172.93,0.26]
[1641198848543,26.87157264,172.98,172.92,8.9341]
[1641198851647,26.87157264,172.98,172.92,0.26]
[1641198851848,26.87157264,172.98,172.91,11.63086513]
[1641198856454,8.6741,172.99,172.91,11.63086513]
[1641198856653,8.9341,172.99,172.91,11.63086513]
[1641198858358,10.2091,172.99,172.91,11.63086513]
[1641198863961,1.275,172.99,172.91,11.63086513]
[1641198864161,1.60745425,173.03,172.84,24.11873861]
[1641198864360,1.60745425,173.03,172.84,7.62136672]
[1641198864361,1.92669368,172.99,172.84,7.62136672]
[1641198864560,8.1,172.98,172.84,4.60890031]
[1641198864759,1.3033,172.97,172.84,4.60890031]
[1641198864960,8.1,172.96,172.84,4.60890031]
[1641198865160,8.6788,172.9,172.83,2.39335601]
[1641198865362,8.6788,172.9,172.81,1.2658]
[1641198866562,8.6788,172.9,172.82,2.41830442]
[1641198866766,8.1,172.93,172.82,2.41830442]
[1641198866967,8.1,172.93,172.82,2.67830442]
[1641198867165,8.1,172.93,172.82,7.93930442]
[1641198867564,9.3704,172.93,172.83,1.2975]
[1641198867765,8.6775,172.91,172.83,1.2975]
[1641198867965,8.6775,172.91,172.83,1.5575]
[1641198868368,8.6775,172.91,172.83,1.2975]
[1641198869367,8.6775,172.91,172.83,9.9755]
[1641198870067,8.6775,172.91,172.83,10.2355]
[1641198870868,8.6775,172.91,172.87,2.3415461]
[1641198871871,61.0,172.9,172.74,94.0]
[1641198872169,61.0,172.9,172.76,464.01926717]
[1641198872170,8.6806,172.85,172.76,464.01926717]
[1641198872569,9.4025,172.89,172.76,464.01926717]
[1641198872768,9.4025,172.89,172.77,4.17460196]
[1641198872969,8.6803,172.85,172.77,4.17460196]
[1641198873769,8.6803,172.85,172.77,3.17540196]
[1641198874174,8.6803,172.85,172.78,8.6806]
[1641198874574,8.6803,172.85,172.78,8.9406]
[1641198876077,8.6803,172.85,172.78,0.26]
[1641198876275,8.6803,172.85,172.77,11.59680196]
[1641198876875,9.1803,172.85,172.77,11.59680196]
[1641198877076,8.6803,172.85,172.77,11.59680196]
[1641198877576,8.6803,172.85,172.77,2.91540196]
[1641198878378,9.1803,172.85,172.77,2.91540196]
[1641198878777,9.1803,172.85,172.77,3.17540196]
[1641198879179,8.6803,172.85,172.77,3.17540196]
[1641198879977,8.6803,172.85,172.77,0.26]
[1641198880377,8.6803,172.85,172.76,10.2143]
[1641198880979,9.1803,172.85,172.76,12.49242757]
[1641198881880,8.6803,172.85,172.83,2.3418263]
[1641198882281,37.02814704,172.84,172.83,2.3418263]
[1641198882479,11.70974704,172.84,172.83,2.3418263]
[1641198884983,12.20974704,172.84,172.83,2.3418263]
[1641198885784,11.70974704,172.84,172.83,2.3418263]
[1641198887284,12.20974704,172.84,172.83,2.3418263]
[1641198887489,11.70974704,172.84,172.83,2.3418263]
[1641198894828,3.02814704,172.84,172.83,2.3418263]
[1641198896430,11.70904704,172.84,172.83,2.3418263]
[1641198898635,11.70904704,172.84,172.83,2.6018263]
[1641198899965,11.70904704,172.84,172.83,2.3418263]
[1641198901267,11.70904704,172.84,172.83,2.6018263]
[1641198902968,3.02814704,172.84,172.83,2.6018263]
[1641198903569,1.60745425,172.88,172.84,43.0]
[1641198903769,1.60745425,172.88,172.84,49.95]
[1641198903969,1.60745425,172.91,172.84,50.21]
[1641198904170,1.60745425,172.91,172.88,2.89131979]
[1641198904573,8.6755,172.95,172.89,3.03219997]
[1641198904970,8.6755,172.95,172.89,3.29219997]
[1641198905173,1.60745425,172.94,172.89,3.29219997]
[1641198905372,8.6766,172.93,172.89,3.29219997]
[1641198906873,9.1766,172.93,172.89,3.29219997]
[1641198907177,10.78405425,172.93,172.89,0.26]
[1641198907574,10.78405425,172.93,172.86,0.26]
[1641198907976,10.78405425,172.93,172.83,84.2183263]
[1641198908376,10.78405425,172.93,172.84,8.6778]
[1641198908574,10.78405425,172.93,172.84,11.51754843]
[1641198909778,12.01795425,172.93,172.84,11.51754843]
[1641198911174,12.01795425,172.93,172.84,12.77984843]
[1641198911577,12.01795425,172.93,172.91,2.3418263]
[1641198911777,10.78405425,172.93,172.91,2.3418263]
[1641198913278,11.04405425,172.93,172.91,2.3418263]
[1641198913678,62.60745425,172.92,172.91,2.3418263]
[1641198913880,79.88705425,172.92,172.91,0.0018263]
[1641198914081,80.14705425,172.92,172.91,0.0018263]
[1641198914279,154.78545425,172.92,172.91,0.0018263]
[1641198914482,153.178,172.92,172.91,0.0018263]
[1641198918583,92.178,172.92,172.91,0.0018263]
[1641198923895,101.04,172.92,172.91,0.0018263]
[1641198927028,100.78,172.92,172.91,0.0018263]
[1641198927229,91.918,172.92,172.91,0.0018263]
[1641198928629,92.178,172.92,172.91,0.0018263]
[1641198930135,91.918,172.92,172.91,0.0018263]
[1641198931132,93.48193837,172.92,172.91,0.0018263]
[1641198932535,93.74193837,172.92,172.91,0.0018263]
[1641198932937,92.178,172.92,172.91,0.0018263]
[1641198944476,101.047,172.92,172.91,0.0018263]
[1641198947584,107.60742265,172.92,172.91,0.0018263]
[1641198949185,101.047,172.92,172.91,0.0018263]
[1641198957400,102.47369368,172.92,172.91,0.0018263]
[1641198963908,93.34469368,172.92,172.91,0.0018263]
[1641198964109,92.178,172.92,172.91,0.0018263]
[1641198978550,92.178,172.92,172.91,6.06622622]
[1641198978749,122.39967488,172.92,172.91,6.06622622]
[1641198979351,49.11977488,172.92,172.91,6.06622622]
[1641198979951,49.11977488,172.92,172.91,0.0018263]
[1641198980151,17.5396,172.92,172.91,0.0018263]
[1641198980757,18.8857,172.92,172.91,0.0018263]
[1641198982058,18.6257,172.92,172.91,0.0018263]
[1641198987564,18.8857,172.92,172.91,0.0018263]
[1641198992198,68.9795254,172.82,172.8,8.6801]
[1641198992391,23.58880866,172.76,172.72,153.6805]
[1641198993091,23.58880866,172.76,172.71,6.34432931]
[1641198993592,23.58880866,172.76,172.71,1.735429]
[1641198995494,23.58880866,172.76,172.7,2.13563763]
[1641198996492,23.58880866,172.76,172.68,1.3213]
[1641198996493,32.27380866,172.76,172.69,8.6846]
[1641198996695,32.27380866,172.76,172.68,1.3213]
[1641198996892,32.27380866,172.76,172.68,1.5813]
[1641198998202,32.27380866,172.76,172.69,2.52923556]
[1641198998602,32.27380866,172.76,172.69,2.78923556]
[1641199000511,32.27380866,172.76,172.69,0.26]
[1641199000712,32.27380866,172.76,172.68,1.3213]
[1641199000909,32.77380866,172.76,172.68,1.3213]
[1641199003014,32.77380866,172.76,172.68,1.5813]
[1641199006219,32.27380866,172.76,172.68,1.5813]
[1641199006627,32.27380866,172.76,172.69,2.39236449]
[1641199006822,32.27380866,172.76,172.69,7.59136449]
[1641199007021,32.27380866,172.76,172.69,16.53596449]
[1641199007022,23.58880866,172.76,172.69,16.53596449]
[1641199008424,23.58880866,172.76,172.69,11.33696449]
[1641199011856,23.58880866,172.76,172.69,19.43696449]
[1641199015459,23.58880866,172.76,172.69,8.6846]
[1641199016360,23.58880866,172.76,172.7,2.65171259]
[1641199016760,23.58880866,172.76,172.7,11.33551259]
[1641199016960,23.58880866,172.76,172.7,11.59551259]
[1641199020268,23.58880866,172.76,172.7,19.69551259]
[1641199024872,23.58880866,172.76,172.7,19.43551259]
[1641199025072,23.58880866,172.76,172.7,8.6838]
[1641199026076,23.58880866,172.76,172.71,2.42775685]
[1641199026279,23.58880866,172.76,172.71,11.11105685]
[1641199026874,23.58880866,172.76,172.71,11.37105685]
[1641199033083,23.58880866,172.76,172.71,8.9433]
[1641199033284,23.58880866,172.76,172.71,8.6833]
[1641199033481,23.58880866,172.76,172.69,8.6844]
[1641199034184,23.58880866,172.76,172.7,2.241708]
[1641199034582,23.58880866,172.76,172.7,2.501708]
[1641199035004,23.58880866,172.76,172.7,11.186008]
[1641199039912,23.58880866,172.76,172.7,8.9443]
[1641199041011,23.58880866,172.76,172.7,11.16303274]
[1641199050922,23.58880866,172.76,172.74,1.065236]
[1641199051227,23.58880866,172.76,172.75,6.06439992]
[1641199051625,23.58880866,172.76,172.75,6.32439992]
[1641199061159,23.58880866,172.76,172.75,0.26]
[1641199061334,23.58880866,172.76,172.74,1.325236]
[1641199062933,23.58880866,172.76,172.75,6.06439992]
[1641199063334,23.58880866,172.76,172.75,6.32439992]
[1641199068249,23.58880866,172.76,172.75,0.26]
[1641199068665,23.58880866,172.76,172.74,1.325236]
[1641199068869,23.58880866,172.76,172.74,1.065236]
[1641199069166,23.58880866,172.76,172.74,1.325236]
[1641199069965,23.58880866,172.76,172.75,6.06439992]
[1641199070167,23.58880866,172.76,172.74,1.325236]
[1641199071171,23.58880866,172.76,172.75,6.06439992]
[1641199071569,23.58880866,172.76,172.75,6.32439992]
[1641199076674,23.58880866,172.76,172.75,0.26]
[1641199076973,23.58880866,172.76,172.71,11.03057145]
[1641199076974,23.58880866,172.76,172.71,11.29057145]
[1641199085390,23.58880866,172.76,172.71,11.03057145]
[1641199086891,23.58880866,172.76,172.71,11.29057145]
[1641199090121,23.58880866,172.76,172.71,8.944]
[1641199090521,23.58880866,172.76,172.71,8.684]
[1641199090922,23.58880866,172.76,172.7,8.6845]
[1641199091923,23.58880866,172.76,172.7,8.9445]
[1641199092323,23.58880866,172.76,172.7,8.6845]
[1641199092926,23.58880866,172.76,172.69,8.685]
[1641199094424,29.17155077,172.75,172.69,8.685]
[1641199095024,29.17155077,172.75,172.69,8.945]
[1641199100537,37.85695077,172.75,172.69,8.945]
[1641199101034,37.85695077,172.75,172.69,0.26]
[1641199101236,36.79171477,172.75,172.69,0.26]
[1641199101435,36.79171477,172.75,172.68,11.5374994]
[1641199102435,38.01641477,172.75,172.68,11.5374994]
[1641199102935,1.2247,172.75,172.68,11.5374994]
[1641199113485,23.58880866,172.76,172.68,11.5374994]
[1641199114985,23.58880866,172.76,172.68,12.7671994]
[1641199124695,23.58880866,172.76,172.68,25.6961994]
[1641199125118,23.58880866,172.76,172.7,0.31029563]
[1641199125416,23.58880866,172.76,172.74,2.96642201]
[1641199125616,23.58880866,172.76,172.75,48.03219997]
[1641199126016,23.58880866,172.76,172.75,48.29219997]
[1641199126216,23.58880866,172.76,172.75,3.29219997]
[1641199126420,23.58880866,172.76,172.75,11.97149997]
[1641199128721,23.58880866,172.76,172.75,15.00369992]
[1641199132123,23.58880866,172.76,172.75,14.74369992]
[1641199133526,23.58880866,172.76,172.75,15.00369992]
[1641199144032,23.58880866,172.76,172.75,14.74369992]
[1641199145333,23.58880866,172.76,172.75,15.00369992]
[1641199164581,23.58880866,172.76,172.75,14.74369992]
[1641199166080,23.58880866,172.76,172.75,15.00369992]
[1641199169082,23.58880866,172.76,172.75,14.74369992]
[1641199169283,23.58880866,172.76,172.71,1.2569]
[1641199169484,23.58880866,172.76,172.69,37.0423]
[1641199170183,23.58880866,172.76,172.7,2.55430434]
[1641199170383,23.58880866,172.76,172.73,8.6831]
[1641199170587,23.58880866,172.76,172.73,8.9431]
[1641199174085,23.58880866,172.76,172.74,6.06439992]
[1641199174486,23.58880866,172.76,172.74,6.32439992]
[1641199177288,23.58880866,172.76,172.74,0.26]
[1641199177491,23.58880866,172.76,172.73,8.9431]
[1641199178691,23.58880866,172.76,172.74,6.06439992]
[1641199179192,23.58880866,172.76,172.75,8.6822]
[1641199179392,23.58880866,172.76,172.74,0.26]
[1641199179591,23.58880866,172.76,172.71,1.54]
[1641199180396,23.58880866,172.76,172.74,8.6826]
[1641199180593,23.58880866,172.76,172.74,8.9426]
[1641199181796,23.58880866,172.76,172.75,3.03219995]
[1641199181998,23.58880866,172.76,172.75,6.32439992]
[1641199182202,23.58880866,172.76,172.75,15.00649992]
[1641199184702,23.58880866,172.76,172.75,6.32439992]
[1641199185302,23.58880866,172.76,172.75,3.29219995]
[1641199186204,23.58880866,172.76,172.75,3.29219997]
[1641199186403,23.58880866,172.76,172.75,11.97439997]
[1641199186703,23.58880866,172.76,172.75,15.00659992]
[1641199187903,23.58880866,172.76,172.75,8.9422]
[1641199189705,23.58880866,172.76,172.75,15.00659992]
[1641199191707,23.58880866,172.76,172.75,6.32439992]
[1641199193311,23.58880866,172.76,172.75,0.26]
[1641199193509,23.58880866,172.76,172.74,8.6827]
[1641199193708,23.58880866,172.76,172.74,14.74709992]
[1641199194112,23.58880866,172.76,172.74,8.6827]
[1641199194908,23.58880866,172.76,172.74,8.9427]
[1641199197314,23.58880866,172.76,172.74,15.00709992]
[1641199199613,23.58880866,172.76,172.74,11.97489997]
[1641199199816,23.58880866,172.76,172.74,11.97489995]
[1641199200040,23.58880866,172.76,172.75,31.03219997]
[1641199200241,23.58880866,172.76,172.75,11.71209997]
[1641199200440,23.58880866,172.76,172.75,11.97209997]
[1641199206745,23.58880866,172.76,172.75,11.71209997]
[1641199207748,23.58880866,172.76,172.75,16.69709997]
[1641199207951,23.58880866,172.76,172.75,16.95709997]
[1641199209251,23.58880866,172.76,172.75,11.97209997]
[1641199220264,23.58880866,172.76,172.75,8.9399]
[1641199222965,23.58880866,172.76,172.75,15.00429992]
[1641199223865,23.58880866,172.76,172.75,14.74429992]
[1641199224067,23.58880866,172.76,172.75,6.06439992]
[1641199224467,23.58880866,172.76,172.69,28.942]
[1641199225069,23.58880866,172.76,172.72,8.6836]
[1641199225468,23.58880866,172.76,172.72,8.9436]
[1641199225969,23.58880866,172.76,172.72,0.26]
[1641199226196,23.58880866,172.76,172.69,3.29558247]
[1641199226971,23.58880866,172.76,172.71,8.6838]
[1641199227471,23.58880866,172.76,172.71,8.9438]
[1641199238587,23.58880866,172.76,172.71,22.7628]
[1641199238782,23.58880866,172.76,172.71,24.18949368]
[1641199247818,23.58880866,172.76,172.71,18.47049368]
[1641199249825,23.58880866,172.76,172.71,18.21049368]
[1641199250023,23.58880866,172.76,172.71,16.7838]
[1641199251231,23.58880866,172.76,172.71,17.0438]
[1641199254631,23.58880866,172.76,172.71,8.9438]
[1641199255429,23.58880866,172.76,172.71,8.6838]
[1641199256933,23.58880866,172.76,172.71,8.9438]
[1641199258434,23.58880866,172.76,172.71,0.26]
[1641199259034,23.58880866,172.76,172.69,8.9447]
[1641199259234,32.27390866,172.76,172.69,8.9447]
[1641199259436,32.27390866,172.76,172.69,0.26]
[1641199259834,32.27390866,172.76,172.68,0.49626435]
[1641199260662,32.27390866,172.76,172.68,9.18176435]
[1641199261864,32.27390866,172.76,172.68,0.49626435]
[1641199262463,33.88602041,172.76,172.68,0.49626435]
[1641199264069,33.88602041,172.76,172.68,9.18186435]
[1641199264969,32.27390866,172.76,172.68,9.18186435]
[1641199265365,32.27390866,172.76,172.68,9.44186435]
[1641199266970,33.57650866,172.76,172.68,9.44186435]
[1641199302443,23.58880866,172.76,172.69,1.42669368]
[1641199302840,23.58880866,172.76,172.73,3.03823697]
[1641199303040,23.58880866,172.76,172.74,6.06439992]
[1641199303340,23.58880866,172.76,172.74,7.4910936]
[1641199303541,1.61211175,172.82,172.75,1.42669368]
[1641199303740,1.61211175,172.82,172.75,18.20869368]
[1641199303940,1.61211175,172.82,172.76,1.42669368]
[1641199304239,1.61211175,172.86,172.77,8.1]
[1641199304442,1.61211175,172.86,172.78,28.9264]
[1641199304641,1.61211175,172.86,172.79,3.05952585]
[1641199304842,1.61211175,172.86,172.79,4.48621953]
[1641199305042,1.61211175,172.86,172.79,4.74621953]
[1641199305345,1.61211175,172.88,172.79,4.74621953]
[1641199305542,1.61211175,172.88,172.83,8.678]
[1641199306043,1.61211175,172.88,172.83,8.938]
[1641199306242,1.61211175,172.89,172.83,8.938]
[1641199312045,1.61211175,172.88,172.83,8.938]
[1641199315250,1.61211175,172.89,172.83,8.938]
[1641199315649,1.61211175,172.88,172.83,8.938]
[1641199317652,1.61211175,172.88,172.83,8.678]
[1641199317854,1.61211175,172.88,172.82,8.6791]
[1641199318051,1.61211175,172.88,172.79,4.48621953]
[1641199318253,1.61211175,172.88,172.77,28.9313]
[1641199318453,1.61211175,172.87,172.77,28.9313]
[1641199318652,31.873021,172.86,172.77,28.9313]
[1641199318853,31.873021,172.86,172.76,1.3381]
[1641199319054,31.873021,172.86,172.76,1.5981]
[1641199319254,1.61211175,172.85,172.78,8.6811]
[1641199319656,1.61211175,172.85,172.78,8.9411]
[1641199320154,10.29341175,172.84,172.78,8.9411]
[1641199321554,10.29341175,172.84,172.78,0.26]
[1641199321756,10.29341175,172.84,172.76,11.68933825]
[1641199323159,1.61211175,172.83,172.76,11.68933825]
[1641199324365,8.6813,172.84,172.76,11.68933825]
[1641199326567,1.61211175,172.83,172.76,11.68933825]
[1641199326768,10.29411175,172.83,172.76,11.68933825]
[1641199326968,10.29411175,172.83,172.76,8.9417]
[1641199333992,8.682,172.83,172.76,8.9417]
[1641199336194,10.29411175,172.83,172.76,8.9417]
[1641199336394,1.61211175,172.83,172.76,8.9417]
[1641199336596,1.61211175,172.83,172.76,17.0417]
[1641199336994,1.61211175,172.85,172.76,18.46839368]
[1641199337595,10.29261175,172.86,172.76,18.46839368]
[1641199337794,10.29261175,172.86,172.76,19.72669368]
[1641199338596,8.6805,172.86,172.76,19.72669368]
[1641199339498,8.6805,172.86,172.76,18.3]
[1641199340701,10.29261175,172.86,172.76,18.3]
[1641199341702,9.7963474,172.86,172.76,18.3]
[1641199344607,9.7963474,172.86,172.77,1.42669368]
[1641199344807,9.7963474,172.86,172.8,8.6801]
[1641199345006,9.7963474,172.86,172.81,2.32541914]
[1641199345407,9.7963474,172.86,172.81,2.58541914]
[1641199346311,8.18423565,172.86,172.81,2.58541914]
[1641199348109,8.18423565,172.86,172.81,0.26]
[1641199348308,8.18423565,172.86,172.8,8.9401]
[1641199349315,9.7963474,172.86,172.8,8.9401]
[1641199350015,1.61211175,172.86,172.8,8.9401]
[1641199350412,1.61211175,172.86,172.8,10.36679368]
[1641199351417,1.61211175,172.86,172.75,28.9348]
[1641199351418,8.6803,172.86,172.75,28.9348]
[1641199351615,9.1803,172.86,172.74,4.38801605]
[1641199351817,9.1803,172.86,172.74,2.96132237]
[1641199352017,1.61211175,172.84,172.74,2.96132237]
[1641199352215,29.3886134,172.83,172.74,2.96132237]
[1641199352617,8.6828,172.81,172.75,8.6826]
[1641199353016,8.6828,172.81,172.74,2.96132237]
[1641199353216,8.6828,172.81,172.72,150.9632]
[1641199354241,8.6828,172.81,172.72,151.2232]
[1641199354442,8.6828,172.81,172.74,8.683]
[1641199354841,8.6828,172.81,172.74,8.943]
[1641199355442,8.6828,172.81,172.74,0.26]
[1641199355846,8.6828,172.81,172.73,11.15124112]
[1641199356443,10.29491175,172.81,172.73,11.15124112]
[1641199356645,10.79491175,172.81,172.73,10.89124112]
[1641199356842,10.29491175,172.81,172.73,10.89124112]
[1641199357042,8.6828,172.81,172.73,10.89124112]
[1641199357643,8.6828,172.81,172.73,12.3179348]
[1641199357843,8.6828,172.81,172.73,10.89124112]
[1641199358045,8.6828,172.81,172.73,11.15124112]
[1641199359647,8.6828,172.81,172.73,12.5779348]
[1641199359847,8.6828,172.81,172.73,11.15124112]
[1641199361855,8.6828,172.81,172.73,12.5779348]
[1641199362155,10.0348,172.82,172.73,12.5779348]
[1641199362551,8.6821,172.82,172.73,12.5779348]
[1641199363251,8.6821,172.82,172.73,13.8306348]
[1641199364353,8.6821,172.82,172.73,13.5706348]
[1641199364555,8.6821,172.82,172.73,12.14394112]
[1641199365652,8.6821,172.82,172.73,12.40394112]
[1641199366354,11.64341175,172.82,172.73,12.40394112]
[1641199367159,10.0313,172.82,172.73,12.40394112]
[1641199367858,11.64341175,172.82,172.73,12.40394112]
[1641199368057,11.64341175,172.82,172.73,13.8306348]
[1641199368557,10.0313,172.82,172.73,13.8306348]
[1641199368956,10.0313,172.82,172.73,12.40394112]
[1641199371962,10.0313,172.82,172.73,12.14394112]
[1641199373370,10.0313,172.82,172.73,12.40394112]
[1641199373865,11.64341175,172.82,172.73,12.40394112]
[1641199374466,11.64341175,172.82,172.73,13.8306348]
[1641199374868,11.64341175,172.82,172.73,12.40394112]
[1641199376269,10.0313,172.82,172.73,12.40394112]
[1641199377469,10.5313,172.82,172.73,12.40394112]
[1641199377872,12.14341175,172.82,172.73,12.40394112]
[1641199382297,11.64341175,172.82,172.73,12.40394112]
[1641199384497,10.0313,172.82,172.73,12.40394112]
[1641199386599,10.0313,172.82,172.76,8.682]
[1641199386800,8.6821,172.82,172.76,8.682]
[1641199387101,10.29421175,172.82,172.76,8.942]
[1641199387904,8.6821,172.82,172.76,8.942]
[1641199392411,8.18619814,172.82,172.76,8.942]
[1641199393816,39.3822134,172.83,172.76,8.942]
[1641199394017,38.0700134,172.83,172.76,8.942]
[1641199394318,8.6814,172.83,172.76,8.942]
[1641199394720,8.6814,172.83,172.76,10.36869368]
[1641199394919,8.6814,172.83,172.76,8.942]
[1641199403456,9.9073,172.85,172.76,8.942]
[1641199403661,1.61211175,172.86,172.76,10.36869368]
[1641199404460,1.3247,172.89,172.76,10.36869368]
[1641199404659,1.3247,172.89,172.77,1.3379]
[1641199404859,8.6794,172.87,172.82,8.6791]
[1641199405059,1.3247,172.89,172.82,8.9391]
[1641199406363,8.6791,172.88,172.82,8.9391]
[1641199415168,10.29121175,172.88,172.82,8.9391]
[1641199415768,1.61211175,172.88,172.82,8.9391]
[1641199417871,11.61541175,172.89,172.82,8.9391]
[1641199418671,1.61211175,172.88,172.82,8.9391]
[1641199420673,10.0033,172.89,172.82,8.9391]
[1641199423677,11.61541175,172.89,172.82,8.9391]
[1641199428584,10.29071175,172.89,172.82,8.9391]
[1641199434212,1.61211175,172.89,172.82,8.9391]
[1641199434913,10.29011175,172.9,172.82,8.9391]
[1641199436118,10.29011175,172.9,172.82,8.6791]
[1641199436516,10.29011175,172.9,172.81,8.6797]
[1641199436717,1.61211175,172.88,172.81,8.6797]
[1641199436915,8.6799,172.87,172.81,8.6797]
[1641199437516,8.6799,172.87,172.81,8.9397]
[1641199437717,10.29201175,172.87,172.81,8.9397]
[1641199440218,27.36853717,172.86,172.81,8.9397]
[1641199440418,36.04853717,172.86,172.81,8.9397]
[1641199440816,36.04853717,172.86,172.81,0.26]
[1641199441017,36.04853717,172.86,172.8,10.1949]
[1641199443119,10.29171175,172.87,172.8,10.1949]
[1641199443519,8.6796,172.87,172.8,10.1949]
[1641199444521,9.9526,172.87,172.8,10.1949]
[1641199452167,1.61211175,172.88,172.8,10.1949]
[1641199452465,1.61211175,172.89,172.8,10.1949]
[1641199452669,1.61211175,172.89,172.8,16.3329]
[1641199453065,1.61211175,172.9,172.8,16.3329]
[1641199454968,1.3246,172.91,172.8,16.3329]
[1641199456669,1.3246,172.91,172.81,1.42669368]
[1641199456868,1.3246,172.91,172.86,8.6771]
[1641199457070,165.53191175,172.92,172.86,11.09924085]
[1641199457271,156.85491175,172.92,172.86,11.09924085]
[1641199457470,155.2428,172.92,172.86,11.09924085]
[1641199460774,155.2428,172.92,172.87,1.42669368]
[1641199460974,155.2428,172.92,172.87,1.68669368]
[1641199461172,155.2428,172.92,172.89,8.6755]
[1641199461575,155.2428,172.92,172.89,8.9355]
[1641199462275,155.2428,172.92,172.9,6.06439992]
[1641199462503,155.2428,172.92,172.9,6.32439992]
[1641199463580,155.2428,172.92,172.9,0.26]
[1641199464077,155.2428,172.92,172.86,1.6017]
[1641199464681,10.2717,172.86,172.79,8.1]
[1641199464876,10.2717,172.86,172.78,77.3006]
[1641199465679,10.2717,172.86,172.78,75.9603]
[1641199466080,18.9519,172.86,172.78,84.6409]
[1641199466479,20.56401175,172.86,172.78,84.6409]
[1641199467081,20.56401175,172.86,172.78,84.9009]
[1641199467783,11.88381175,172.86,172.78,84.9009]
[1641199468382,10.2717,172.86,172.78,84.9009]
[1641199473012,18.9516,172.86,172.78,84.9009]
[1641199475915,18.9516,172.86,172.79,136.06317373]
[1641199475916,10.2717,172.86,172.79,136.06317373]
[1641199476116,10.2717,172.86,172.83,2.783136]
[1641199476320,10.2717,172.86,172.84,8.1]
[1641199476516,10.2717,172.86,172.84,18.29659358]
[1641199476717,10.2717,172.86,172.84,19.72328726]
[1641199476918,0.0001,172.86,172.85,47.4910936]
[1641199477118,0.0001,172.86,172.85,47.7510936]
[1641199477319,0.0001,172.86,172.85,24.5262936]
[1641199478221,0.0001,172.86,172.85,23.09959992]
[1641199478622,0.0001,172.86,172.85,14.99959992]
[1641199479727,0.0001,172.86,172.85,14.73959992]
[1641199480128,0.0001,172.86,172.81,1.2449]
[1641199480327,0.0001,172.86,172.79,1.42669368]
[1641199480827,0.0001,172.86,172.79,4.3143378]
[1641199481432,0.0001,172.86,172.82,8.6791]
[1641199481635,0.0001,172.86,172.82,8.9391]
[1641199488138,0.0001,172.86,172.82,17.0391]
[1641199489268,0.0001,172.86,172.82,8.9391]
[1641199497178,0.0001,172.86,172.82,10.1708]
[1641199498277,0.0001,172.86,172.82,9.9108]
[1641199498677,0.0001,172.86,172.82,8.6791]
[1641199498878,0.0001,172.86,172.8,8.6798]
[1641199500079,0.0001,172.86,172.8,8.9398]
[1641199503383,0.0001,172.86,172.8,10.36649368]
[1641199503984,0.0001,172.86,172.81,1.2722]
[1641199504383,0.0001,172.86,172.83,8.678]
[1641199504585,0.0001,172.86,172.83,8.938]
[1641199504986,0.0001,172.86,172.84,6.06439992]
[1641199505586,0.0001,172.86,172.84,17.15347857]
[1641199507387,0.0001,172.86,172.84,15.00239992]
[1641199509895,0.0001,172.86,172.84,16.4290936]
[1641199510295,0.0001,172.86,172.84,15.00239992]
[1641199516201,0.0001,172.86,172.84,19.87139992]
[1641199516399,0.0001,172.86,172.85,43.42669368]
[1641199516600,0.0001,172.86,172.85,1.68669368]
[1641199516800,0.0001,172.86,172.85,10.36209368]
[1641199517599,0.0001,172.86,172.85,10.10209368]
[1641199517800,0.0001,172.86,172.85,8.6754]
[1641199519001,0.0001,172.86,172.85,0.26]
[1641199519404,0.0001,172.86,172.84,15.00259992]
[1641199520506,0.0001,172.86,172.84,8.9382]
[1641199524131,0.0001,172.86,172.84,15.00259992]
[1641199531941,0.0001,172.86,172.84,21.99459992]
[1641199534543,0.0001,172.86,172.84,23.24069992]
[1641199534743,0.0001,172.86,172.84,24.6673936]
[1641199536047,0.0001,172.86,172.85,39.5]
[1641199536247,0.0001,172.86,172.85,48.1754]
[1641199536449,0.0001,172.86,172.85,10.4354]
[1641199539953,0.0001,172.86,172.85,10.1754]